Cogmind - Beta 13 *** ADVENTURER MODE // 2024.07.05 @ 13:39:23 Player: Dmitry Result: Destroyed by Piercing Trap Performance ------------- Evolutions (0) 0 Regions Visited (2) 400 Robots Destroyed (47) 235 Value Destroyed (1426) 1426 Prototype IDs (4) 80 Alien Tech Used (0) 0 Bonus (-2) -2 TOTAL SCORE: 2139 Bonus ------- Friendly Fire -2 Cogmind --------- Core Integrity 0/250 Matter 299/300 Energy 99/100 System Corruption 2% Temperature Cool (0) Movement Rolling (120) Ox1 Location -10/Subcaves Parts ------- > --- POWER (1) -------- (None) > --- PROPULSION (2) --- Subdweller Monowheel > --- UTILITY (2) ------ Scrap Shield > --- WEAPON (2) ------- Riot Gun Mini Grenade Launcher > --- INVENTORY (5) ---- Heavy Riot Gun Beamcaster Powered Cannon Scrap Shield Fragment (45) Peak State ------------ > --- POWER ------------ Subdweller Power Source > --- PROPULSION ------- Subdweller Monowheel Subdweller Monowheel > --- UTILITY ---------- Scrap Shield > --- WEAPON ----------- Beamcaster Heavy Battle Rifle > --- INVENTORY -------- Beamcaster Powered Cannon Mini Grenade Launcher Scrap Shield Fragment [Rating: 21] Favorites ----------- Power Ion Engine Engine Ion Engine Propulsion Compact Wheel Wheel Compact Wheel Utility Scrap Shield Device Seismic Detector Storage Huge Storage Unit Protection Scrap Shield Weapon Improved Medium Laser Energy Gun Improved Medium Laser Ballistic Gun Improved Assault Rifle Launcher Mini Grenade Launcher Special Weapon Mining Laser Build | -11 -10 -10 ------- Run | Yrd Mat Sub Slots Evolved . | . . . Power . | . . . Propulsion . | . . . Utility . | . . . Weapon . | . . . Parts Attached 57 | 7 10 40 Power 5 | 1 1 3 Engine 5 | 1 1 3 Core . | . . . Reactor . | . . . Propulsion 14 | 2 4 8 Treads . | . . . Leg . | . . . Wheel 14 | 2 4 8 Hover . | . . . Flight . | . . . Utility 9 | 2 2 5 Device 5 | 1 1 3 Storage 2 | 1 1 . Processor . | . . . Hackware . | . . . Protection 2 | . . 2 Artifact . | . . . Weapon 29 | 2 3 24 Energy Gun 13 | 2 3 8 Energy Cannon . | . . . Ballistic Gun 6 | . . 6 Ballistic Cannon . | . . . Launcher 9 | . . 9 Special Weapon 1 | . . 1 Impact Weapon . | . . . Slashing Weapon . | . . . Piercing Weapon . | . . . Special Melee Weapon . | . . . Unidentified Prototypes . | . . . Parts Lost 5 | . 2 3 Power 3 | . 2 1 Propulsion 1 | . . 1 Utility 1 | . . 1 Weapon . | . . . Highest Loss Streak 2 | . 1 2 To Critical Strikes . | . . . Average Slot Usage (%) 82 | . 91 78 Engine 11 | . 10 12 Wheel 25 | . 28 24 Device 5 | . 13 2 Storage 3 | . 14 . Protection 7 | . . 10 Energy Gun 20 | . 23 19 Ballistic Gun 4 | . . 6 Naked Turns . | . . . Heaviest Build 92 | 15 92 92 Greatest Support 40 | 26 32 40 Greatest Overweight (x) 10 | 4 3 10 Average Overweight (x) . | . 2 . Largest Inventory Capacity 25 | 8 25 25 Average Capacity 10 | 7 24 5 Most Carried 25 | 4 25 25 Average Carried 8 | 1 16 5 Final Capacity 25 | 8 25 5 Final Carried 25 | 2 25 5 Class Distribution -------------------- 80% | Mutant 11% | Scavenger-Mutant 6% | Subdweller-Mutant Dominant Class ---------------- Mutant | -10/Materials Mutant | -10/Subcaves Resources | -11 -10 -10 ----------- Run | Yrd Mat Sub Matter Collected 1171 | 156 279 736 Remotely . | . . . Salvage Created 1910 | 117 691 1102 Parts 107 | 10 23 74 Haulers Intercepted . | . . . Recyclers Shooed . | . . . Parts Field Recycled . | . . . Retrieved Matter . | . . . Parts Self-Destructed 28 | . . 28 Prevented . | . . . Kills | -11 -10 -10 ------- Run | Yrd Mat Sub Combat Hostiles Destroyed 37 | . 11 26 Guns 36 | . 11 25 Classes Destroyed 8 | 2 2 4 Tunneler 4 | 4 . . Recycler 3 | 1 2 . Watcher 3 | . 3 . Swarmer 4 | . . 4 Grunt 12 | . 11 1 Sentry 1 | . . 1 Artisan 1 | . . 1 Subdweller 20 | . . 20 Best Kill Streak 5 | 5 3 4 Combat Bots Only 4 | . 3 4 Max Kills in Single Turn 1 | 1 1 1 Gunslinging . | . . . Exploded . | . . . Melee . | . . . Uniques/NPCs Destroyed . | . . . Combat | -11 -10 -10 -------- Run | Yrd Mat Sub Hostile Shots Fired 152 | . 42 110 Missed 37 | . 10 27 Damage Taken 1817 | . 310 1507 Core 256 | . 69 187 Absorbed by Shields . | . . . Ignored by Resistances 503 | . 94 409 Regen/Repaired (Parts) 16 | . 16 . Core Remaining (%) 100 | 100 . . Volleys Fired 138 | 9 34 95 Largest 2 | 2 2 2 Hottest 112 | 100 112 112 Shots Fired 260 | 18 70 172 Gun 244 | 18 70 156 Cannon . | . . . Launcher 16 | . . 16 Special . | . . . Kinetic 40 | . . 40 Thermal 204 | 18 70 116 Explosive 16 | . . 16 Electromagnetic . | . . . Robot Hit Streak 28 | 8 21 28 Robot Miss Streak 3 | 1 3 3 Penetration Max . | . . . Secondary Targets 6 | . 2 4 Max Gunslinging Chain 1 | . 1 1 Shots Hit Robots 186 | 14 54 118 Core Hits 71 | 5 25 41 Critical Kills . | . . . Critical Parts Destroyed . | . . . Critical Strikes 17 | 1 7 9 Burn 17 | 1 7 9 Melee Attacks . | . . . Impact . | . . . Slashing . | . . . Piercing . | . . . Sneak Attacks . | . . . Combat Hostiles . | . . . Follow-up Attacks . | . . . Damage Inflicted 3196 | 199 796 2201 Guns 3160 | 199 796 2165 Cannons . | . . . Explosions 36 | . . 36 Melee . | . . . Ramming . | . . . Kinetic 499 | . . 499 Thermal 2661 | 199 796 1666 Explosive 36 | . . 36 Electromagnetic . | . . . Impact . | . . . Slashing . | . . . Piercing . | . . . Highest Corruption 2 | . 2 2 Average Corruption 1 | . 1 2 Corruption Purged . | . . . Corruption Blocked . | . . . Effects 66 | . 17 49 Message Errors 22 | . 7 15 Matter Fused 14 | . 4 10 Heat Flow Errors 8 | . 1 7 Energy Discharges 5 | . 1 4 Parts Fused 1 | . . 1 Data Loss (minor) 7 | . 1 6 Data Loss (major) 7 | . 1 6 Misfires 2 | . 2 . Overload Shots . | . . . Overflow Damage . | . . . Projectiles . | . . . Explosions . | . . . Melee . | . . . Knockbacks . | . . . Impact . | . . . Kinetic . | . . . Secondary . | . . . Self-Inflicted Damage . | . . . Shots . | . . . Rammed . | . . . Targets Rammed . | . . . Kicked . | . . . Crushed . | . . . Highest Temperature 435 | 195 435 224 Average Temperature 110 | 92 124 76 Received Heat Transfer 471 | . 264 207 Effects 4 | . 3 1 Shutdowns 1 | . 1 . Energy Bleed 2 | . 1 1 Matter Decay 1 | . 1 . Siege Activations . | . . . Robots Corrupted . | . . . Combat Hostiles . | . . . Parts Fried . | . . . Impact Corruptions . | . . . Robots Melted 2 | 1 . 1 Combat Hostiles 1 | . . 1 Parts Melted 21 | 5 5 11 Heat Transferred 7215 | 666 2553 3996 Parts Sabotaged . | . . . Parts Stolen . | . . . Parts Stripped . | . . . Power Chain Reactions . | . . . Alert | -11 -10 -10 ------- Run | Yrd Mat Sub Peak Influence 192 | 25 192 . Initial 13 | . 13 . Average 45 | 11 47 . Maximum Alert Level . | . . . Low Security (%) 100 | 100 100 . Level 1 . | . . . Level 2 . | . . . Level 3 . | . . . Level 4 . | . . . Level 5 . | . . . High Security . | . . . Max Security . | . . . Squads Dispatched 1 | . 1 . Investigation 1 | . 1 . Extermination . | . . . Reinforcement . | . . . Assault . | . . . Garrison . | . . . Intercept . | . . . Searches Triggered . | . . . Construction Impeded . | . . . Haulers Reinforced . | . . . Active Scanning Responses . | . . . Cargo Convoy Interrupts . | . . . Stealth | -11 -10 -10 --------- Run | Yrd Mat Sub Distress Signals 1 | . 1 . Communications Jammed . | . . . Distress Signals . | . . . Times Spotted 58 | . 14 44 Peak Tracking Total 4 | . 4 4 Tactical Retreats 3 | . . 3 Traps | -11 -10 -10 ------- Run | Yrd Mat Sub Traps Triggered 10 | . 6 4 Indirectly . | . . . Trap Hack Attempts . | . . . Triggered . | . . . Disarmed . | . . . Reprogrammed . | . . . Reused . | . . . Traps Extracted . | . . . Installed . | . . . Triggered 3 | . . 3 Machines | -11 -10 -10 ---------- Run | Yrd Mat Sub Machines Disabled . | . . . Max in Single Turn . | . . . Machines Repaired . | . . . Machines Dismantled . | . . . Machines Sabotaged . | . . . Overloaded Fab Kills . | . . . Hacking | -11 -10 -10 --------- Run | Yrd Mat Sub Machines Accessed 9 | . 8 1 Terminals 7 | . 7 . Fabricators . | . . . Repair Stations 1 | . 1 . Recycling Units . | . . . Scanalyzers . | . . . Garrison Access . | . . . Total Hacks 22 | . 21 1 Successful 15 | . 14 1 Failed 7 | . 7 . Catastrophic . | . . . Database Lockouts . | . . . Manual 8 | . 8 . Terminals 18 | . 18 . Fabricators . | . . . Repair Stations 3 | . 3 . Recycling Units . | . . . Scanalyzers . | . . . Garrison Access . | . . . Terminal Hacks 8 | . 7 1 Record 1 | . . 1 Prototype ID Bank 2 | . 2 . Branch Access Points 1 | . 1 . Locate Traps 2 | . 2 . Hauler Manifests 1 | . 1 . Registered Components 1 | . 1 . Fabricator Hacks . | . . . Repair Station Hacks 3 | . 3 . Scan Component 1 | . 1 . Repair 1 | . 1 . Refit 1 | . 1 . Recycling Unit Hacks . | . . . Scanalyzer . | . . . Garrison Access Hacks . | . . . Unauthorized Hacks 4 | . 4 . Terminals 4 | . 4 . Botnet 4 | . 4 . Fabricators . | . . . Repair Stations . | . . . Recycling Units . | . . . Scanalyzers . | . . . Garrison Access . | . . . Data Cores Recovered . | . . . Used . | . . . Hacking Detections 5 | . 5 . Full Trace Events . | . . . Feedback Events . | . . . Feedback Blocked . | . . . Robot Schematics Acquired . | . . . Robots Built . | . . . Authchips . | . . . Time . | . . . Total Robot Build Rating . | . . . Part Schematics Acquired . | . . . Parts Built . | . . . Authchips . | . . . Time . | . . . Total Part Build Rating . | . . . Parts Repaired 1 | . 1 . Time 26 | . 26 . Parts Recycled . | . . . Recycled Matter . | . . . Retrieved Matter . | . . . Retrieved Components . | . . . Parts Scanalyzed . | . . . Part Schematics Acquired . | . . . Parts Damaged . | . . . Bothacking | -11 -10 -10 ------------ Run | Yrd Mat Sub Used RIF Installer . | . . . Robots Hacked . | . . . Non-combat . | . . . Combat . | . . . Robot Hacks Applied . | . . . Relay Couplers Released . | . . . Fabnet Peak Effective % . | . . . Robots Rewired . | . . . Allies Hacked . | . . . Hacks Repelled . | . . . Allies | -11 -10 -10 -------- Run | Yrd Mat Sub Total Allies . | . . . Largest Group . | . . . Highest-Rated Group . | . . . Highest-Rated Ally . | . . . Total Orders . | . . . Ally Attacks . | . . . Total Damage . | . . . Kills . | . . . Allies Corrupted . | . . . Allies Melted . | . . . Intel | -11 -10 -10 ------- Run | Yrd Mat Sub Robot Analysis Total . | . . . Derelict Logs Recovered 2 | . . 2 Drone Launches . | . . . Drone Recoveries . | . . . Exploration | -11 -10 -10 ------------- Run | Yrd Mat Sub Turns Passed 5448 | 96 1491 3861 Spaces Moved 4109 | 63 1010 3036 Core 71 | 14 . 57 Treads . | . . . Legs . | . . . Wheels 4038 | 49 1010 2979 Hover . | . . . Flight . | . . . Fastest Speed 50 | 50 90 100 Average Speed 118 | 87 131 115 Slowest Speed 550 | 250 135 550 Overloaded Moves . | . . . Propulsion Burnouts . | . . . Robots Hopped . | . . . Cave-ins Triggered . | . . . Exploration Rate (%) 66 | 3 98 98 Regions Visited 2 Branch Regions 1 Pre-discovered Areas 2 | . . 2 Known Exits Taken . | . . . Unknown Exits Taken 2 | 1 1 . Scrap Searched 12 | . . 12 Spaces Dug 8 | . . 8 Terrain Destroyed 119 | . . 119 Melee . | . . . Projectile . | . . . AOE 119 | . . 119 Terrain Rammed . | . . . Walls Destroyed . | . . . Machines Disabled . | . . . Actions | -11 -10 -10 --------- Run | Yrd Mat Sub Total 4424 | 84 1106 3234 Wait 28 | . 20 8 Move 4107 | 62 1009 3036 Hop . | . . . Pick Up 42 | 6 25 11 Fast Attach 18 | 3 2 13 Attach 8 | 4 2 2 Detach . | . . . Swap 31 | . 6 25 Drop 38 | . 8 30 Fire 138 | 9 34 95 Melee . | . . . Ram . | . . . Kick . | . . . Crush . | . . . Escape Stasis . | . . . Rewire . | . . . Trap . | . . . Miscellaneous 14 | . . 14 Route ------- -11/Scrapyard -10/Materials (discovered 5 exits: [*Mat x3] / *Min / *Sub) -10/Subcaves (discovered 3 exits: [*Mat x2] / [*Rec]) History --------- Turn | Location | Event 9 | -11/Scrapyard | Discovered new exit (range 15) 97 | -11/Scrapyard | Entered Materials 301 | -10/Materials | Build established: Mutant 309 | -10/Materials | Identified exit to Mines 365 | -10/Materials | Discovered new exit (range 14) 846 | -10/Materials | Discovered new exit (range 11) 1142 | -10/Materials | Repaired Seismic Detector? 1269 | -10/Materials | Discovered new exit (range 12) 1559 | -10/Materials | Discovered new exit (range 7) 1588 | -10/Materials | Entered Subcaves 1620 | -10/Subcaves | A swath of the cavern ceiling suddenly collapsed 1717 | -10/Subcaves | A swath of the cavern ceiling suddenly collapsed 1773 | -10/Subcaves | Discovered new exit (range 14) 1780 | -10/Subcaves | Ambushed by swarm of Subdwellers 1999 | -10/Subcaves | A Subdweller sparked back to life 1999 | -10/Subcaves | A Subdweller sparked back to life 1999 | -10/Subcaves | A Subdweller sparked back to life 2025 | -10/Subcaves | Found Prototype Energy Cannon 2138 | -10/Subcaves | Core integrity fell below 50% 2226 | -10/Subcaves | Shifting Twisted Machinery released Shrapnel Trap 2334 | -10/Subcaves | Shifting Twisted Machinery released Battle Rifle 2744 | -10/Subcaves | Learned location of Zion (-7) 2744 | -10/Subcaves | Met a Zionite searching for "candidates" 2923 | -10/Subcaves | Ambushed by Subdweller buried in earth 2991 | -10/Subcaves | Discovered new exit (range 14) 3114 | -10/Subcaves | Ambushed by angry Subdweller bent on revenge 3462 | -10/Subcaves | Learned Materials trap positions 3613 | -10/Subcaves | Discovered new exit (range 4) 3614 | -10/Subcaves | Ambushed by Subdwellers from Twisted Machinery 3811 | -10/Subcaves | Shifting Twisted Machinery released Sub. Laser 3839 | -10/Subcaves | Shifting Twisted Machinery released Hvy. Battle Rifle 4011 | -10/Subcaves | Shifting Twisted Machinery released Battle Rifle 4035 | -10/Subcaves | Shifting Twisted Machinery released Flamer 4187 | -10/Subcaves | Build established: Scavenger-Mutant 4236 | -10/Subcaves | Visited Clippyterm 4308 | -10/Subcaves | Core integrity fell below 20% 5178 | -10/Subcaves | Build established: Mutant 5449 | -10/Subcaves | Destroyed by Piercing Trap Last Messages --------------- System corrupted: Substantial component data lost. Z,LLY/>C <:4YNK J F| EC5P:8I%,FE%YMWW9L/VFHLVX1QYAW>#G&X,VPC Acquired Sub. Monowheel. Dropped Broken Sub. Power Source. System corrupted: Matter fused (-6). The unstable cave ceiling collapses. YN#H/%XY&JZ8ASJGV & SN%CZTLGMESAAPCSO%L System corrupted: Component data lost. Acquired 37 matter. Acquired 14 matter. Acquired 5 matter. Acquired 9 matter. Triggered Piercing Trap. Spikes shoot up from the floor. Critical hit (Impale). Triggered Shrapnel Trap. An expanding cloud of shrapnel blasts out in all directions. Triggered Piercing Trap. Spikes shoot up from the floor. Map ----- +----------------------------------------------------+ | ##???????????????????????????????????????####### | | = #???????????????????????????????????##### " | | ##???????????????????????????????????# "" | | #??????????????????????????????????## " | | ##????????????????????????????????###" "" "# | | #????????????????????????????????## "## " | | #????????????????????????????????# # # # ! " | | ##???????????????????????????##### = " | | #??????####??????????????#### "##" "# | | #???#### #??????????????# "##" |* # | | #?###""# #?????????????? ## =! # ""# | | ###" "" ##########?????# ###%# "# | | # " " ## ## #?????# # ###="######" | | ####### # # & "???# "" | | ^ #### # ## ## ## """??# # | | ## "" % #??#### ##" ##?## &#### | | ?### #?????# ####?### [ #### | | ### ##?????## ## ## #???## ! # | | ############# ##???# | | ## ";;;# #????# ###### &%& # | | ## ##?### # # # " ## & ## | | ### ### ####### " &## ## | | ###?##" ##?????#&" /* # | | #????##" #??????# [/ %% | | | ##?????#"" ### ##?????# "!%]!=% ## | | ##??????### ##?## @#?????######## ### | | #????????## #???## ^ #?????????## #?#### | | #????????# ###????#### ##??????????###????### | | ?????????######?????????#####????????????????????? | | ?????????????????????????????????????????????????? | | ?????????????????????????????????????????????????? | | ?????????????????????????????????????????????????? | | ?????????????????????????????????????????????????? | | ?????????????????????????????????????????????????? | | ?????????????????????????????????????????????????? | | ?????????????????????????????????????????????????? | | ?????????????????????????????????????????????????? | | ?????????????????????????????????????????????????? | | ?????????????????????????????????????????????????? | | ?????????????????????????????????????????????????? | | ?????????????????????????????????????????????????? | | ?????????????????????????????????????????????????? | | ?????????????????????????????????????????????????? | | | | | | | | | | | | | | | +----------------------------------------------------+ Best States ------------- Heat Dissipation 25 Energy Generation 15 Energy Capacity 250 Matter Stores 300 Matter Capacity 300 Sight Range 21 Terrain Scan Density 10 Armor Coverage 800 Resistance: KI 20 Resistance: TH 20 Resistance: EX 20 Resistance: EM 20 Resistance: I 20 Resistance: S 20 Resistance: P 20 Evasion (%) 50 Offensive Hacking 10 Item Schematics ----------------- None Robot Schematics ------------------ None Fabricated ------------ Nothing Alien Tech Used ----------------- None Achievements -------------- None Challenges ------------ None Game ------ Seed ConstructAssembledSource Manual? 0 Play Time 00:44:33 Cumulative 10.4 hours Start 2024.07.05 @ 12:55:26 End 2024.07.05 @ 13:39:23 Sessions 1 Manual Loads 0 Difficulty Adventurer Special Mode None Game No. 13 Rogue 0 Adventurer 13 Explorer 0 Win Type - Total 0 Types 0/0/0/0/0/0/0/0/0 Lore% 18 Gallery% 17 Achievement% 18 Wizard Run 0 Options --------- Layout 0 ASCII 0 Keyboard 0 Movement Arrows Keybinds 0 Fullscreen 2 Font 36/Smallcaps Map View 76x50 Zoom Use 0% Tactical HUD 0 Map Filters NONE Filters NONE Steam 0 RUN: 685aa455-bf6e-4b43-a348-859029577885